fUSD/lending_fUSD_20250519
["ID","MTS","AMOUNT","RATE_DAILY","PERIOD"]
[361643266,1747659053517,-562.51,0.00013698,2]
[361643267,1747659053527,-701.695871,0.00013698,2]
[361643268,1747659053536,-952.87854,0.00013698,2]
[361643269,1747659053545,-952.87854,0.00013698,2]
[361643270,1747659053555,-400.0,0.00013698,2]
[361643271,1747659053566,-1254.42,0.00013698,2]
[361643272,1747659053575,-580.4,0.00013698,2]
[361643273,1747659053584,-952.87854,0.00013698,2]
[361643274,1747659053594,-420.0,0.00013698,2]
[361643275,1747659053603,-952.87854,0.00013698,2]
[361643276,1747659053612,-420.0,0.00013698,2]
[361643277,1747659053622,-402.22659791,0.00013698,2]
[361643278,1747659053632,-952.87854,0.00013698,2]
[361643279,1747659053641,-420.0,0.00013698,2]
[361643280,1747659053651,-400.0,0.00013698,2]
[361643281,1747659053660,-400.0,0.00013698,2]
[361643282,1747659053672,-2223.02,0.00013698,2]
[361643283,1747659053682,-420.0,0.00013698,2]
[361643284,1747659053692,-952.87854,0.00013698,2]
[361643285,1747659053701,-532.53,0.00013698,2]
[361643286,1747659053710,-151.0,0.00013698,2]
[361643287,1747659053720,-952.87854,0.00013698,2]
[361643288,1747659053729,-420.0,0.00013698,2]
[361643289,1747659053738,-151.0,0.00013698,2]
[361643290,1747659053748,-559.87,0.00013698,2]
[361643291,1747659053757,-605.39118039,0.00013698,2]
[361643292,1747659053769,-347.48735961,0.00013698,2]
[361643293,1747659053779,-428.18,0.00013698,2]
[361643294,1747659053788,-420.0,0.00013698,2]
[361643295,1747659053798,-952.87854,0.00013698,2]
[361643296,1747659053807,-420.0,0.00013698,2]
[361643297,1747659053817,-400.0,0.00013698,2]
[361643298,1747659053826,-952.87854,0.00013698,2]
[361643299,1747659053835,-952.87854,0.00013698,2]
[361643300,1747659053845,-995.41,0.00013698,2]
[361643301,1747659053855,-420.0,0.00013698,2]
[361643302,1747659053864,-400.0,0.00013698,2]
[361643303,1747659053874,-400.0,0.00013698,2]
[361643304,1747659053883,-151.0,0.00013698,2]
[361643305,1747659053892,-151.0,0.00013698,2]
[361643306,1747659053901,-400.0,0.00013698,2]
[361643307,1747659053910,-115.26301086,0.00013698,2]
[361643308,1747659053934,-1055.87698914,0.00013698,2]
[361643309,1747659053943,-401.72766127,0.00013698,2]
[361643310,1747659053954,-400.0,0.00013698,2]
[361643311,1747659053963,-400.0,0.00013698,2]
[361643312,1747659053973,-462.68388922,0.00013698,2]
[361643313,1747659054104,-1463.23611078,0.00013698,2]
[361643314,1747659054113,-420.0,0.00013698,2]
[361643315,1747659054124,-420.0,0.00013698,2]
[361643316,1747659054134,-420.0,0.00013698,2]
[361643317,1747659054144,-400.0,0.00013698,2]
[361643318,1747659054153,-420.0,0.00013698,2]
[361643319,1747659054163,-420.0,0.00013698,2]
[361643320,1747659054176,-329.37097014,0.00013698,2]
[361643321,1747659054190,-90.62902986,0.00013698,2]
[361643322,1747659054201,-328.21655445,0.00013698,2]
[361643323,1747659054212,-91.78344555,0.00013698,2]
[361643324,1747659054220,-449.53,0.00013698,2]
[361643325,1747659054229,-420.0,0.00013698,2]
[361643326,1747659054238,-1619.72,0.00013698,2]
[361643327,1747659054248,-766.98353227,0.00013698,2]
[361643328,1747659054259,-3847.76391666,0.00013698,2]
[361643332,1747659306217,486.36893165,0.000273,120]
[361643333,1747659502630,-168.96,0.00012173,2]
[361643334,1747659673967,717.49,0.00010248,2]
[361643336,1747660028742,821.35172703,0.00027,120]
[361643337,1747660031278,212.0,0.00011085,2]
[361643338,1747660137388,-476.99,0.00012091,2]
[361643339,1747660137409,-284.45,0.00012094,2]
[361643340,1747660137430,-612.68,0.00012097,2]
[361643341,1747660137451,-4858.81,0.00012107,2]
[361643342,1747660137472,-1000.0,0.00012132,2]
[361643343,1747660137497,-300.0,0.00012133,2]
[361643344,1747660137518,-1200.0,0.00012134,2]
[361643345,1747660137539,-300.0,0.00012134,2]
[361643346,1747660137562,-967.07,0.00012135,2]
[361643347,1747660138643,-10000.0,0.00012135,2]
[361643348,1747660139803,-2327.67,0.00012135,2]
[361643349,1747660139825,-250.0,0.00012166,2]
[361643350,1747660139846,-180.81,0.00012166,2]
[361643351,1747660139867,-206.1,0.0001217,2]
[361643352,1747660139888,-31.04,0.00012173,2]
[361643353,1747660139910,-7004.38,0.00012184,2]
[361643355,1747660141343,-10000.0,0.00012184,2]
[361643356,1747660143211,-6895.62,0.00012184,2]
[361643357,1747660143233,-165.38,0.00012192,2]
[361643358,1747660164113,-200.81503315,0.00012234,2]
[361643359,1747660181212,214.0,0.00011085,2]
[361643361,1747660224477,-200.0,0.00012253,2]
[361643362,1747660224499,-1637.4109418,0.00012258,2]
[361643363,1747660224521,-2748.0,0.00012271,2]
[361643375,1747660232219,-464.15452277,0.00012512,2]
[361643380,1747660232277,-253.33547723,0.00012512,2]
[361643382,1747660232287,-363.39,0.00012772,2]
[361643384,1747660232296,-200.0,0.00012774,2]
[361643386,1747660232305,-363.39,0.00012776,2]
[361643388,1747660232314,-363.39,0.00012779,2]
[361643389,1747660232323,-363.39,0.00012782,2]
[361643390,1747660232333,-363.39,0.00012786,2]
[361643391,1747660232343,-363.39,0.00012789,2]
[361643392,1747660232352,-363.39,0.00012793,2]
[361643393,1747660232361,-363.39,0.00012796,2]
[361643394,1747660232371,-363.39,0.00012799,2]
[361643395,1747660232380,-800.0,0.000128,2]
[361643396,1747660232389,-1200.0,0.00012802,2]
[361643397,1747660232398,-363.39,0.00012803,2]
[361643398,1747660232408,-363.39,0.00012806,2]
[361643399,1747660232417,-363.39,0.00012809,2]
[361643400,1747660232426,-363.39,0.00012813,2]
[361643401,1747660232435,-150.0,0.00012813,2]
[361643402,1747660232446,-363.39,0.00012816,2]
[361643403,1747660232455,-363.39,0.00012819,2]
[361643404,1747660232465,-363.39,0.00012823,2]
[361643405,1747660232475,-363.39,0.00012826,2]
[361643406,1747660232484,-363.39,0.0001283,2]
[361643407,1747660232494,-363.39,0.00012833,2]
[361643408,1747660232503,-363.39,0.00012836,2]
[361643409,1747660232513,-6079.680802,0.00012913,2]
[361643410,1747660232524,-150.3,0.00012978,2]
[361643411,1747660232534,-304.54,0.00012978,2]
[361643412,1747660232543,-150.3,0.00012978,2]
[361643413,1747660232552,-1158.37,0.00012978,2]
[361643414,1747660232562,-155.7,0.00012978,2]
[361643415,1747660232571,-150.0,0.00012978,2]
[361643416,1747660232580,-353.17,0.00012978,2]
[361643417,1747660232589,-151.0,0.00013012,2]
[361643418,1747660232599,-151.67207982,0.00013012,2]
[361643419,1747660232609,-155.0,0.00013012,2]
[361643420,1747660232618,-668.65185757,0.00013012,2]
[361643421,1747660232628,-668.65185757,0.00013012,2]
[361643422,1747660232638,-207.4,0.00013012,2]
[361643423,1747660232647,-151.0,0.00013012,2]
[361643424,1747660232657,-458.06,0.00013041,2]
[361643425,1747660232666,-805.14,0.00013041,2]
[361643426,1747660232676,-458.06,0.00013041,2]
[361643427,1747660232685,-805.14,0.00013041,2]
[361643428,1747660232696,-754.01,0.00013041,2]
[361643429,1747660232706,-457.4,0.00013041,2]
[361643430,1747660232715,-304.4,0.000131,2]
[361643432,1747660232724,-453.03,0.000131,2]
[361643434,1747660232734,-165.38,0.00013208,2]
[361643436,1747660232743,-453.11,0.000133,2]
[361643438,1747660232753,-352.85,0.000133,2]
[361643440,1747660232762,-150.0,0.000133,2]
[361643442,1747660232772,-150.3,0.000133,2]
[361643444,1747660232782,-920.0,0.00013416,2]
[361643447,1747660232791,-554.0,0.00013416,2]
[361643450,1747660232800,-1284.63,0.00013416,2]
[361643453,1747660232810,-665.219,0.00013416,2]
[361643455,1747660232819,-1268.225,0.00013416,2]
[361643457,1747660232828,-5943.0,0.00013416,2]
[361643459,1747660232837,-170.75,0.00013452,2]
[361643460,1747660232847,-150.0,0.00013452,2]
[361643461,1747660232856,-150.0,0.00013452,2]
[361643462,1747660232866,-253.8521014,0.0001351,2]
[361643463,1747660232875,-671.39212514,0.00013555,2]
[361643464,1747660232884,-1448.9918,0.00013588,2]
[361643465,1747660232893,-163.69254399,0.00013588,2]
[361643466,1747660232903,-2027.30960865,0.00013589,2]
[361643467,1747660232912,-500.0,0.00013597,2]
[361643468,1747660232921,-326.58056802,0.00013597,2]
[361643469,1747660232930,-500.0,0.00013597,2]
[361643470,1747660232940,-500.0,0.00013597,2]
[361643471,1747660232949,-500.0,0.00013597,2]
[361643472,1747660232958,-500.0,0.00013597,2]
[361643473,1747660232968,-500.0,0.00013597,2]
[361643474,1747660232978,-500.0,0.00013597,2]
[361643475,1747660232987,-154.59462352,0.00013597,2]
[361643476,1747660232996,-500.0,0.00013597,2]
[361643477,1747660233005,-500.0,0.00013597,2]
[361643478,1747660233015,-300.0,0.00013597,2]
[361643479,1747660233025,-500.0,0.00013597,2]
[361643480,1747660233035,-343.41509237,0.00013597,2]
[361643481,1747660233044,-500.0,0.00013597,2]
[361643482,1747660233053,-500.0,0.00013597,2]
[361643483,1747660233063,-500.0,0.00013597,2]
[361643484,1747660233072,-500.0,0.00013597,2]
[361643485,1747660233082,-500.0,0.00013597,2]
[361643486,1747660233091,-500.0,0.00013597,2]
[361643487,1747660233101,-413.37216036,0.00013597,2]
[361643488,1747660233110,-243.62619263,0.00013597,2]
[361643489,1747660233119,-1518.72354916,0.00013598,2]
[361643490,1747660233894,-911.57,0.00013598,2]
[361643491,1747660233906,-1100.40210347,0.00013598,2]
[361643492,1747660233917,-57487.84704737,0.00013598,2]
[361643493,1747660233927,-3222.86662041,0.00013598,2]
[361643494,1747660233936,-163.6928763,0.00013598,2]
[361643495,1747660233945,-169.26542732,0.00013598,2]
[361643496,1747660233955,-150.09412696,0.00013598,2]
[361643497,1747660233965,-169.70353233,0.00013598,2]
[361643498,1747660233974,-216.87364653,0.00013598,2]
[361643499,1747660233983,-150.3,0.000136,2]
[361643500,1747660233993,-476.99,0.00013602,2]
[361643501,1747660234002,-4043.0,0.00013614,2]
[361643502,1747660234011,-154.0,0.00013614,2]
[361643503,1747660234021,-6830.0,0.00013614,2]
[361643504,1747660234030,-878.21,0.00013618,2]
[361643505,1747660234040,-2027.30960861,0.00013624,2]
[361643506,1747660234049,-3222.86662041,0.00013632,2]
[361643507,1747660234058,-151.96,0.00013636,2]
[361643508,1747660234068,-2336.19,0.00013636,2]
[361643509,1747660234077,-150.0,0.00013636,2]
[361643510,1747660234086,-353.05,0.00013636,2]
[361643511,1747660234096,-353.24,0.00013636,2]
[361643512,1747660234105,-150.3,0.00013636,2]
[361643513,1747660234114,-1000.0,0.00013648,2]
[361643514,1747660234124,-2027.30960861,0.00013658,2]
[361643515,1747660234133,-1732.151,0.00013665,2]
[361643516,1747660234142,-3222.86662041,0.00013665,2]
[361643517,1747660234152,-500.0,0.00013673,2]
[361643518,1747660234161,-500.0,0.00013673,2]
[361643519,1747660234171,-500.0,0.00013673,2]
[361643520,1747660234180,-500.0,0.00013673,2]
[361643521,1747660234190,-163.69287629,0.00013674,2]
[361643522,1747660234200,-169.70353231,0.00013674,2]
[361643523,1747660234209,-56685.6532736,0.00013688,2]
[361643524,1747660234218,-5445.3628625,0.00013688,2]
[361643525,1747660234227,-2109.1405273,0.00013688,2]
[361643526,1747660234237,-153.85482975,0.00013688,2]
[361643527,1747660234247,-2027.30960861,0.00013693,2]
[361643528,1747660234256,-773.0,0.00013698,2]
[361643529,1747660234266,-273.4347589,0.00013698,2]
[361643530,1747660234275,-164255.72350502,0.00013698,2]
[361643531,1747660234285,-151.0,0.00013698,2]
[361643532,1747660234295,-151.0,0.00013698,2]
[361643533,1747660234304,-162.977609,0.00013698,2]
[361643534,1747660234314,-151.0,0.00013698,2]
[361643535,1747660234324,-151.0,0.00013698,2]
[361643536,1747660234334,-151.0,0.00013698,2]
[361643537,1747660234343,-151.0,0.00013698,2]
[361643538,1747660234353,-151.0,0.00013698,2]
[361643539,1747660234362,-152.84996,0.00013698,2]
[361643540,1747660234372,-151.0,0.00013698,2]
[361643541,1747660234381,-151.0,0.00013698,2]
[361643542,1747660234391,-151.0,0.00013698,2]
[361643543,1747660234400,-151.0,0.00013698,2]
[361643544,1747660234409,-151.0,0.00013698,2]
[361643545,1747660234419,-151.0,0.00013698,2]
[361643546,1747660234428,-151.0,0.00013698,2]
[361643547,1747660234439,-151.0,0.00013698,2]
[361643548,1747660234450,-151.0,0.00013698,2]
[361643549,1747660234460,-151.0,0.00013698,2]
[361643550,1747660234470,-151.0,0.00013698,2]
[361643551,1747660234480,-151.0,0.00013698,2]
[361643552,1747660234489,-151.0,0.00013698,2]
[361643553,1747660234499,-151.0,0.00013698,2]
[361643554,1747660234508,-151.0,0.00013698,2]
[361643555,1747660234518,-151.0,0.00013698,2]
[361643556,1747660234529,-241.770855,0.00013698,2]
[361643557,1747660234539,-151.0,0.00013698,2]
[361643558,1747660234548,-523.12314491,0.00013698,2]
[361643559,1747660234558,-2908.02305,0.00013698,2]
[361643560,1747660234567,-200.0,0.00013698,2]
[361643561,1747660234577,-765.08,0.00013698,2]
[361643562,1747660234587,-420.0,0.00013698,2]
[361643563,1747660234596,-400.0,0.00013698,2]
[361643564,1747660234606,-420.0,0.00013698,2]
[361643565,1747660234616,-1074.952015,0.00013698,2]
[361643566,1747660234626,-400.0,0.00013698,2]
[361643567,1747660234635,-400.0,0.00013698,2]
[361643568,1747660234645,-420.0,0.00013698,2]
[361643569,1747660234654,-151.0,0.00013698,2]
[361643570,1747660234664,-409.82,0.00013698,2]
[361643571,1747660234673,-420.0,0.00013698,2]
[361643572,1747660234683,-420.0,0.00013698,2]
[361643573,1747660234693,-420.0,0.00013698,2]
[361643574,1747660234702,-420.0,0.00013698,2]
[361643575,1747660234712,-420.0,0.00013698,2]
[361643576,1747660234721,-420.0,0.00013698,2]
[361643577,1747660234731,-153.97,0.00013698,2]
[361643578,1747660234740,-400.0,0.00013698,2]
[361643579,1747660234750,-420.0,0.00013698,2]
[361643580,1747660234759,-151.0,0.00013698,2]
[361643581,1747660234768,-500.0,0.00013698,2]
[361643582,1747660234778,-420.0,0.00013698,2]
[361643583,1747660234787,-400.0,0.00013698,2]
[361643584,1747660234797,-151.0,0.00013698,2]
[361643585,1747660234806,-151.0,0.00013698,2]
[361643586,1747660234815,-627.88,0.00013698,2]
[361643587,1747660234825,-152.602475,0.00013698,2]
[361643588,1747660234834,-510.86,0.00013698,2]
[361643589,1747660234844,-420.0,0.00013698,2]
[361643590,1747660234854,-805.93,0.00013698,2]
[361643591,1747660234864,-462.65,0.00013698,2]
[361643592,1747660234873,-420.0,0.00013698,2]
[361643593,1747660234883,-163.87,0.00013698,2]
[361643594,1747660234893,-151.0,0.00013698,2]
[361643595,1747660234902,-151.0,0.00013698,2]
[361643596,1747660234912,-384.64456124,0.00013698,2]
[361643597,1747660234921,-420.0,0.00013698,2]
[361643598,1747660234930,-428.5,0.00013698,2]
[361643599,1747660234940,-500.0,0.00013698,2]
[361643600,1747660234953,-420.0,0.00013698,2]
[361643601,1747660234963,-420.0,0.00013698,2]
[361643602,1747660234972,-400.0,0.00013698,2]
[361643603,1747660234982,-420.0,0.00013698,2]
[361643604,1747660234992,-500.0,0.00013698,2]
[361643605,1747660235001,-528.74,0.00013698,2]
[361643606,1747660235010,-420.0,0.00013698,2]
[361643607,1747660235019,-608.59,0.00013698,2]
[361643608,1747660235028,-420.0,0.00013698,2]
[361643609,1747660235038,-196.421956,0.00013698,2]
[361643610,1747660235047,-196.421956,0.00013698,2]
[361643611,1747660235057,-196.421956,0.00013698,2]
[361643612,1747660235066,-196.421956,0.00013698,2]
[361643613,1747660235075,-420.0,0.00013698,2]
[361643614,1747660235085,-151.0,0.00013698,2]
[361643615,1747660235095,-151.0,0.00013698,2]
[361643616,1747660235104,-151.0,0.00013698,2]
[361643617,1747660235114,-420.0,0.00013698,2]
[361643618,1747660235126,-151.0,0.00013698,2]
[361643619,1747660235135,-151.0,0.00013698,2]
[361643620,1747660235146,-151.0,0.00013698,2]
[361643621,1747660235157,-227.614076,0.00013698,2]
[361643622,1747660235167,-482.79,0.00013698,2]
[361643623,1747660235177,-151.0,0.00013698,2]
[361643624,1747660235187,-420.0,0.00013698,2]
[361643625,1747660235197,-151.0,0.00013698,2]
[361643626,1747660235206,-507.63,0.00013698,2]
[361643627,1747660235215,-420.0,0.00013698,2]
[361643628,1747660235224,-420.0,0.00013698,2]
[361643629,1747660235234,-420.0,0.00013698,2]
[361643630,1747660235243,-420.0,0.00013698,2]
[361643631,1747660235252,-400.0,0.00013698,2]
[361643632,1747660235261,-205.77095,0.00013698,2]
[361643633,1747660235270,-665.3,0.00013698,2]
[361643634,1747660235279,-420.0,0.00013698,2]
[361643635,1747660235288,-400.0,0.00013698,2]
[361643636,1747660235297,-400.10176362,0.00013698,2]
[361643637,1747660235307,-1634.73,0.00013698,2]
[361643638,1747660235316,-420.0,0.00013698,2]
[361643639,1747660235325,-151.0,0.00013698,2]
[361643640,1747660235334,-151.0,0.00013698,2]
[361643641,1747660235343,-151.0,0.00013698,2]
[361643642,1747660235352,-400.0,0.00013698,2]
[361643643,1747660235361,-400.0,0.00013698,2]
[361643644,1747660235371,-420.0,0.00013698,2]
[361643645,1747660235380,-420.0,0.00013698,2]
[361643646,1747660235388,-420.0,0.00013698,2]
[361643647,1747660235397,-420.0,0.00013698,2]
[361643648,1747660235406,-151.0,0.00013698,2]
[361643649,1747660235415,-170.98,0.00013698,2]
[361643650,1747660235424,-208.0,0.00013698,2]
[361643651,1747660235434,-156.01,0.00013698,2]
[361643652,1747660235443,-282.29,0.00013698,2]
[361643653,1747660235452,-641.1,0.00013698,2]
[361643654,1747660235462,-400.0,0.00013698,2]
[361643655,1747660235471,-400.0,0.00013698,2]
[361643656,1747660235480,-420.0,0.00013698,2]
[361643657,1747660235489,-396.5,0.00013698,2]
[361643658,1747660235499,-420.0,0.00013698,2]
[361643659,1747660235508,-400.0,0.00013698,2]
[361643660,1747660235520,-400.0,0.00013698,2]
[361643661,1747660235530,-431.86,0.00013698,2]
[361643662,1747660235539,-401.9694287,0.00013698,2]
[361643663,1747660235548,-211.7,0.00013698,2]
[361643664,1747660235557,-420.0,0.00013698,2]
[361643665,1747660235567,-420.0,0.00013698,2]
[361643666,1747660235576,-420.0,0.00013698,2]
[361643667,1747660235585,-432.56,0.00013698,2]
[361643668,1747660235595,-420.0,0.00013698,2]
[361643669,1747660235605,-370.1201983,0.00013698,2]
[361643670,1747660235614,-420.0,0.00013698,2]
[361643671,1747660235624,-347.37783078,0.00013698,2]
[361643672,1747660235633,-1485.69,0.00013698,2]
[361643673,1747660235642,-635.69,0.00013698,2]
[361643674,1747660235652,-387.1666385,0.00013698,2]
[361643675,1747660235661,-788.18,0.00013698,2]
[361643676,1747660235670,-420.0,0.00013698,2]
[361643677,1747660235680,-400.58935804,0.00013698,2]
[361643678,1747660235689,-79.11827702,0.00013698,2]
[361643679,1747660237191,2000.0,0.0002739,120]
[361643727,1747660240684,-880.0,0.00013614,2]
[361643728,1747660240693,-340.88172298,0.00013698,2]
[361643729,1747660240702,-619.41,0.00013698,2]
[361643730,1747660240711,-400.0,0.00013698,2]
[361643731,1747660240720,-420.0,0.00013698,2]
[361643732,1747660240729,-400.0,0.00013698,2]
[361643733,1747660240738,-400.0,0.00013698,2]
[361643734,1747660240747,-902.42,0.00013698,2]
[361643735,1747660240756,-472.98,0.00013698,2]
[361643736,1747660240764,-420.0,0.00013698,2]
[361643737,1747660240774,-151.0,0.00013698,2]
[361643738,1747660240783,-420.0,0.00013698,2]
[361643739,1747660240792,-420.0,0.00013698,2]
[361643740,1747660240801,-360.0,0.00013698,2]
[361643741,1747660240810,-366.88096896,0.00013698,2]
[361643742,1747660240819,-501.43,0.00013698,2]
[361643743,1747660240828,-420.0,0.00013698,2]
[361643744,1747660240837,-420.0,0.00013698,2]
[361643745,1747660240846,-420.0,0.00013698,2]
[361643746,1747660240854,-420.0,0.00013698,2]
[361643747,1747660240864,-428.93,0.00013698,2]
[361643748,1747660240875,-420.0,0.00013698,2]
[361643749,1747660240885,-420.0,0.00013698,2]
[361643750,1747660240895,-859.18,0.00013698,2]
[361643751,1747660240904,-420.0,0.00013698,2]
[361643752,1747660240914,-572.99,0.00013698,2]
[361643753,1747660240923,-420.0,0.00013698,2]
[361643754,1747660240932,-401.97023752,0.00013698,2]
[361643755,1747660240942,-587.26,0.00013698,2]
[361643756,1747660240953,-420.0,0.00013698,2]
[361643757,1747660240963,-495.49,0.00013698,2]
[361643758,1747660240972,-400.0,0.00013698,2]
[361643759,1747660240982,-420.0,0.00013698,2]
[361643760,1747660240991,-400.0,0.00013698,2]
[361643761,1747660241001,-1085.75,0.00013698,2]
[361643762,1747660241011,-400.0,0.00013698,2]
[361643763,1747660241020,-400.0,0.00013698,2]
[361643764,1747660241029,-420.0,0.00013698,2]
[361643765,1747660241039,-420.0,0.00013698,2]
[361643766,1747660241048,-420.0,0.00013698,2]
[361643767,1747660241057,-400.0,0.00013698,2]
[361643768,1747660241066,-507.92,0.00013698,2]
[361643769,1747660241076,-420.0,0.00013698,2]
[361643770,1747660241087,-420.0,0.00013698,2]
[361643771,1747660241097,-400.0,0.00013698,2]
[361643772,1747660241107,-420.0,0.00013698,2]
[361643773,1747660241116,-405.50304602,0.00013698,2]
[361643774,1747660241127,-420.0,0.00013698,2]
[361643775,1747660241136,-316.1151068,0.00013698,2]
[361643776,1747660241145,-476.5,0.00013698,2]
[361643777,1747660241154,-420.0,0.00013698,2]
[361643778,1747660241164,-400.0,0.00013698,2]
[361643779,1747660241173,-420.0,0.00013698,2]
[361643780,1747660241183,-151.0,0.00013698,2]
[361643781,1747660241192,-400.0,0.00013698,2]
[361643782,1747660241203,-1003.78,0.00013698,2]
[361643783,1747660241212,-151.0,0.00013698,2]
[361643784,1747660241221,-614.31,0.00013698,2]
[361643785,1747660241233,-420.0,0.00013698,2]
[361643786,1747660241244,-400.0,0.00013698,2]
[361643787,1747660241253,-420.0,0.00013698,2]
[361643788,1747660241262,-400.0,0.00013698,2]
[361643789,1747660241272,-420.0,0.00013698,2]
[361643790,1747660241281,-420.0,0.00013698,2]
[361643791,1747660241291,-501.32200393,0.00013698,2]
[361643792,1747660241300,-375.82657516,0.00013698,2]
[361643793,1747660241310,-400.0,0.00013698,2]
[361643794,1747660241321,-420.0,0.00013698,2]
[361643795,1747660241332,-500.0,0.00013698,2]
[361643796,1747660241343,-420.0,0.00013698,2]
[361643797,1747660241352,-400.0,0.00013698,2]
[361643798,1747660241361,-420.0,0.00013698,2]
[361643799,1747660241371,-400.0,0.00013698,2]
[361643800,1747660241380,-420.0,0.00013698,2]
[361643801,1747660241389,-687.87,0.00013698,2]
[361643802,1747660241399,-420.0,0.00013698,2]
[361643803,1747660241408,-420.0,0.00013698,2]
[361643804,1747660241418,-420.0,0.00013698,2]
[361643805,1747660241427,-420.0,0.00013698,2]
[361643806,1747660241436,-401.44282912,0.00013698,2]
[361643807,1747660241446,-400.0,0.00013698,2]
[361643808,1747660241455,-400.0,0.00013698,2]
[361643809,1747660241465,-420.0,0.00013698,2]
[361643810,1747660241474,-398.41605946,0.00013698,2]
[361643811,1747660241484,-417.38,0.00013698,2]
[361643812,1747660241493,-956.38,0.00013698,2]
[361643813,1747660241502,-420.0,0.00013698,2]
[361643814,1747660241512,-671.11,0.00013698,2]
[361643815,1747660241524,-400.0,0.00013698,2]
[361643816,1747660241534,-400.0,0.00013698,2]
[361643817,1747660241543,-400.0,0.00013698,2]
[361643818,1747660241553,-420.0,0.00013698,2]
[361643819,1747660241563,-250.0,0.00013698,2]
[361643820,1747660241572,-400.0,0.00013698,2]
[361643821,1747660241582,-400.0,0.00013698,2]
[361643822,1747660241591,-600.88,0.00013698,2]
[361643823,1747660241601,-400.0,0.00013698,2]
[361643824,1747660241610,-420.0,0.00013698,2]
[361643825,1747660241619,-151.0,0.00013698,2]
[361643826,1747660241629,-151.0,0.00013698,2]
[361643827,1747660241638,-472.66,0.00013698,2]
[361643828,1747660241648,-420.0,0.00013698,2]
[361643829,1747660241657,-420.0,0.00013698,2]
[361643830,1747660241667,-319.3559399,0.00013698,2]
[361643831,1747660241676,-400.0,0.00013698,2]
[361643832,1747660241686,-420.0,0.00013698,2]
[361643833,1747660241696,-483.78685597,0.00013698,2]
[361643834,1747660241705,-400.1058444,0.00013698,2]
[361643835,1747660241715,-400.0,0.00013698,2]
[361643836,1747660241724,-400.0,0.00013698,2]
[361643837,1747660241733,-572.32,0.00013698,2]
[361643838,1747660241742,-400.0,0.00013698,2]
[361643839,1747660241751,-467.33,0.00013698,2]
[361643840,1747660241761,-420.0,0.00013698,2]
[361643841,1747660241770,-420.0,0.00013698,2]
[361643842,1747660241779,-420.0,0.00013698,2]
[361643843,1747660241788,-400.0,0.00013698,2]
[361643844,1747660241798,-448.86,0.00013698,2]
[361643845,1747660241807,-400.0,0.00013698,2]
[361643846,1747660241816,-420.0,0.00013698,2]
[361643847,1747660241826,-420.0,0.00013698,2]
[361643848,1747660241836,-400.0,0.00013698,2]
[361643849,1747660241845,-1171.51,0.00013698,2]
[361643850,1747660241855,-400.0,0.00013698,2]
[361643851,1747660241864,-560.06,0.00013698,2]
[361643852,1747660241873,-420.0,0.00013698,2]
[361643853,1747660241882,-465.18616464,0.00013698,2]